bitfinex-derivatives/quotes_BTCF0:USTF0_20250811
["timestamp","ask_amount","ask_price","bid_price","bid_amount"]
[1754925738375,1.20973995,120390.0,120380.0,4e-08]
[1754925738570,0.0830949,120360.0,120350.0,0.02937]
[1754925738881,0.2493166,120350.0,120340.0,0.02937]
[1754925739082,0.0831156,120330.0,120320.0,0.6395294]
[1754925739382,0.0831156,120330.0,120320.0,0.61818706]
[1754925739574,0.9277156,120330.0,120320.0,0.61818706]
[1754925739776,0.0831156,120330.0,120320.0,0.61818706]
[1754925740086,0.9273956,120330.0,120320.0,0.61818706]
[1754925740582,0.0831156,120330.0,120320.0,0.39017]
[1754925741173,0.9266356,120330.0,120320.0,0.39017]
[1754925741370,0.9266356,120330.0,120300.0,0.5514019]
[1754925741371,0.0831363,120300.0,120290.0,0.5881802]
[1754925741572,0.0831363,120300.0,120290.0,0.06177796]
[1754925741881,0.9265763,120300.0,120290.0,0.14492116]
[1754925742077,0.9266563,120300.0,120290.0,0.17429116]
[1754925742382,0.9265763,120300.0,120290.0,0.09060116]
[1754925742673,0.9265763,120300.0,120280.0,1.05601087]
[1754925742674,0.0831432,120290.0,120280.0,0.11496997]
[1754925742881,0.0831432,120290.0,120280.0,0.14501793]
[1754925743086,0.0831432,120290.0,120280.0,0.17438793]
[1754925743476,0.9263432,120290.0,120280.0,0.17438793]
[1754925744369,0.8432,120290.0,120280.0,0.17438793]
[1754925744576,0.76106671,120300.0,120290.0,0.0831432]
[1754925744871,0.84252,120300.0,120290.0,0.9733099]
[1754925745073,0.0832298,120310.0,120300.0,0.0831363]
[1754925745273,0.9255298,120310.0,120300.0,0.1668263]
[1754925745470,0.8424,120310.0,120300.0,0.98076096]
[1754925745674,0.1663469,120320.0,120300.0,1.14702956]
[1754925745878,0.1663469,120320.0,120310.0,0.5276194]
[1754925745879,0.0001,120320.0,120310.0,0.5276194]
[1754925746082,0.62856708,120330.0,120320.0,0.0831225]
[1754925746276,1.11002708,120330.0,120320.0,0.1442225]
[1754925746482,1.47082708,120330.0,120320.0,0.02937]
[1754925746678,0.0831225,120320.0,120310.0,0.2787504]
[1754925746882,0.9254025,120320.0,120310.0,0.3104804]
[1754925747184,0.9254025,120320.0,120310.0,0.3330704]
[1754925747388,0.4439225,120320.0,120310.0,0.3330704]
[1754925747576,0.0831225,120320.0,120310.0,0.3330704]
[1754925747786,0.70376326,120330.0,120320.0,0.0831225]
[1754925747978,0.70366326,120330.0,120320.0,0.1124925]
[1754925748183,1.54586326,120330.0,120320.0,0.1124925]
[1754925748383,0.70448326,120330.0,120320.0,0.1124925]
[1754925748584,0.69611662,120330.0,120320.0,0.1124925]
[1754925748779,1.09415462,120330.0,120320.0,0.1124925]
[1754925748980,0.08595302,120330.0,120320.0,0.5294925]
[1754925749185,0.92771302,120330.0,120320.0,0.98662716]
[1754925749988,1.01082862,120330.0,120320.0,0.64085046]
[1754925750191,1.01038862,120330.0,120320.0,0.64085046]
[1754925750590,1.01038862,120330.0,120320.0,0.64585046]
[1754925750889,1.01038862,120330.0,120320.0,0.28505046]
[1754925751192,1.81737532,120330.0,120320.0,0.1089]
[1754925751391,0.97657532,120330.0,120320.0,0.1089]
[1754925751590,1.81733532,120330.0,120320.0,0.1089]
[1754925752092,1.81713532,120330.0,120320.0,0.1089]
[1754925752485,0.97657532,120330.0,120320.0,0.1089]
[1754925752685,1.98307132,120330.0,120320.0,0.1089]
[1754925752887,1.14279132,120330.0,120320.0,0.1089]
[1754925753086,1.98247132,120330.0,120320.0,0.1089]
[1754925753290,1.14279132,120330.0,120320.0,0.1089]
[1754925753492,1.98247132,120330.0,120320.0,0.1089]
[1754925753690,1.14279132,120330.0,120320.0,0.1089]
[1754925753887,1.98227132,120330.0,120320.0,0.1089]
[1754925754491,1.14279132,120330.0,120320.0,0.1089]
[1754925754795,1.98159132,120330.0,120320.0,0.10884072]
[1754925755588,0.52986862,120330.0,120320.0,0.10884072]
[1754925755789,0.16906862,120330.0,120320.0,0.22285322]
[1754925755993,1.36810862,120330.0,120320.0,0.27905322]
[1754925756292,0.52986862,120330.0,120320.0,0.25628322]
[1754925756691,0.16824862,120330.0,120320.0,0.73218788]
[1754925756990,1.00686862,120330.0,120320.0,0.28651118]
[1754925757897,1.36766862,120330.0,120320.0,0.28651118]
[1754925758190,1.00686862,120330.0,120320.0,0.28651118]
[1754925758992,0.97657532,120330.0,120320.0,0.10884072]
[1754925759191,1.81437532,120330.0,120320.0,0.10884072]
[1754925759391,1.14279132,120330.0,120320.0,0.10884072]
[1754925759593,1.97963132,120330.0,120320.0,0.10884072]
[1754925759900,1.97943132,120330.0,120320.0,0.10884072]
[1754925760291,1.14279132,120330.0,120320.0,0.10884072]
[1754925760590,1.97899132,120330.0,120320.0,0.10884072]
[1754925761103,1.14279132,120330.0,120320.0,0.08263002]
[1754925761292,1.97903132,120330.0,120320.0,0.08263002]
[1754925761600,2.02875132,120330.0,120320.0,0.06033142]
[1754925761800,1.19279132,120330.0,120320.0,0.02472132]
[1754925761987,2.02851132,120330.0,120320.0,2e-08]
[1754925762190,0.0831432,120290.0,120280.0,0.03098317]
[1754925762390,1.7254199,120290.0,120280.0,0.03089]
[1754925762595,1.7254599,120290.0,120280.0,0.03089]
[1754925762798,0.2494621,120280.0,120270.0,0.03089]
[1754925763098,1.8915788,120280.0,120270.0,0.03089]
[1754925763298,0.6102621,120280.0,120270.0,0.114047]
[1754925763493,1.45416776,120280.0,120270.0,0.114047]
[1754925764692,1.45516776,120280.0,120270.0,0.114047]
[1754925764898,0.53637176,120280.0,120270.0,0.114047]
[1754925765096,0.5281061,120280.0,120270.0,0.114047]
[1754925765397,0.0841501,120280.0,120270.0,0.53850496]
[1754925765596,0.9188701,120280.0,120270.0,0.15493496]
[1754925765796,0.0841501,120280.0,120270.0,0.15493496]
[1754925766102,0.9188701,120280.0,120270.0,0.147477]
[1754925766402,0.9186301,120280.0,120270.0,0.170247]
[1754925766802,0.0841501,120280.0,120270.0,0.170247]
[1754925767097,1.7247468,120280.0,120270.0,0.03089]
[1754925767596,1.7247468,120280.0,120270.0,0.114047]
[1754925767793,1.2780701,120280.0,120270.0,0.115047]
[1754925767995,0.0831501,120280.0,120270.0,0.115047]
[1754925768192,0.0831501,120280.0,120270.0,0.171247]
[1754925768595,0.4439501,120280.0,120270.0,0.170247]
[1754925768797,1.2767901,120280.0,120270.0,0.170247]
[1754925769001,0.4439501,120280.0,120270.0,0.170247]
[1754925769195,0.4439501,120280.0,120270.0,0.06432]
[1754925769400,1.2802701,120280.0,120270.0,0.03089]
[1754925770509,1.2802701,120280.0,120270.0,0.1140471]
[1754925771207,1.2802701,120280.0,120270.0,0.03089]
[1754925771405,0.4439501,120280.0,120270.0,0.03089]
[1754925771603,0.4439501,120280.0,120250.0,0.8896471]
[1754925771604,0.0831639,120260.0,120250.0,0.0562]
[1754925771798,0.0831709,120250.0,120240.0,0.6665242]
[1754925772100,0.0831709,120250.0,120240.0,0.76297216]
[1754925772304,0.9182509,120250.0,120240.0,0.76297216]
[1754925772697,0.9184109,120250.0,120240.0,0.76297216]
[1754925773398,0.9234109,120250.0,120240.0,0.40217216]
[1754925773808,0.0881709,120250.0,120240.0,0.40217216]
[1754925774103,0.9229309,120250.0,120240.0,0.40217216]
[1754925774300,0.0881709,120250.0,120240.0,0.40217216]
[1754925774708,0.84032,120250.0,120240.0,0.40217216]
[1754925774908,0.4499709,120250.0,120240.0,0.40217216]
[1754925775209,0.9232909,120250.0,120240.0,0.40217216]
[1754925775711,0.99081022,120250.0,120240.0,0.40217216]
[1754925777302,0.98961022,120250.0,120240.0,0.40217216]
[1754925778110,0.51749022,120250.0,120240.0,0.23582186]
[1754925778315,0.0831778,120240.0,120230.0,0.1133942]
[1754925778516,1.3610545,120240.0,120230.0,0.1133942]
[1754925778705,1.3610145,120240.0,120230.0,0.2053442]
[1754925779007,1.7216145,120240.0,120230.0,0.03021]
[1754925779221,1.7214545,120240.0,120230.0,0.03021]
[1754925779513,1.7214945,120240.0,120230.0,0.03021]
[1754925779709,0.8896545,120240.0,120230.0,0.03021]
[1754925780010,1.7220145,120240.0,120230.0,0.03021]
[1754925780312,0.8896545,120240.0,120230.0,0.03021]
[1754925780507,1.8902385,120240.0,120230.0,0.0001]
[1754925780709,0.8916545,120240.0,120230.0,0.0001]
[1754925781007,1.7273345,120240.0,120230.0,0.03021]
[1754925781203,0.8946545,120240.0,120230.0,0.03021]
[1754925781404,1.7311345,120240.0,120230.0,0.03021]
[1754925781599,0.8986545,120240.0,120230.0,0.1133947]
[1754925781800,0.0921778,120240.0,120230.0,0.2265847]
[1754925781999,1.2854978,120240.0,120230.0,0.1434]
[1754925782711,1.2858978,120240.0,120230.0,0.08738]
[1754925782910,0.4529778,120240.0,120230.0,0.1133947]
[1754925783108,1.2858578,120240.0,120230.0,0.2265847]
[1754925783607,0.4529778,120240.0,120230.0,0.2265847]
[1754925783804,0.9260578,120240.0,120230.0,0.2265847]
[1754925784010,0.0921778,120240.0,120230.0,0.1771147]
[1754925784208,0.009,120240.0,120230.0,0.67971936]
[1754925784406,0.009,120240.0,120230.0,1.04051936]
[1754925784607,0.84296,120240.0,120230.0,1.04051936]
[1754925784810,0.009,120240.0,120230.0,1.04051936]
[1754925785309,0.3698,120240.0,120230.0,0.08738]
[1754925785613,1.75125751,120240.0,120230.0,0.04957]
[1754925785815,1.95170151,120240.0,120230.0,0.04957]
[1754925786007,1.95170151,120240.0,120230.0,0.10137]
[1754925786209,1.11742151,120240.0,120230.0,0.10137]
[1754925786404,1.08332151,120240.0,120230.0,0.10137]
[1754925787013,1.07732151,120240.0,120230.0,0.10137]
[1754925787212,1.07932151,120240.0,120230.0,0.10137]
[1754925787605,0.91297751,120240.0,120230.0,0.0519]
[1754925787806,1.30026081,120240.0,120230.0,0.0519]
[1754925788006,0.46830081,120240.0,120230.0,0.0519]
[1754925788206,1.30726081,120240.0,120230.0,0.0519]
[1754925788412,1.30726081,120240.0,120230.0,0.08391]
[1754925788610,1.75301751,120240.0,120230.0,0.0519]
[1754925789221,0.91697751,120240.0,120230.0,0.0519]
[1754925789516,1.75305751,120240.0,120230.0,0.0519]
[1754925790319,0.91697751,120240.0,120230.0,0.0519]
[1754925790620,1.08332151,120240.0,120230.0,0.0519]
[1754925791009,1.13332151,120240.0,120230.0,0.0519]
[1754925791412,0.68764481,120240.0,120230.0,0.0519]
[1754925791819,1.97016151,120240.0,120230.0,0.0519]
[1754925792214,1.92016151,120240.0,120230.0,0.0519]
[1754925792418,1.92128151,120240.0,120230.0,0.0519]
[1754925792814,1.08332151,120240.0,120230.0,0.0519]
[1754925793020,1.92112151,120240.0,120230.0,0.0519]
[1754925793221,1.08332151,120240.0,120230.0,0.0519]
[1754925794923,1.92096151,120240.0,120230.0,0.0519]
[1754925795314,0.63764481,120240.0,120230.0,0.0519]
[1754925795510,1.92060151,120240.0,120230.0,0.0519]
[1754925795916,1.08332151,120240.0,120230.0,0.0519]
[1754925796725,1.75449751,120240.0,120230.0,0.0519]
[1754925797022,1.92076151,120240.0,120230.0,0.0519]
[1754925797321,1.08332151,120240.0,120230.0,0.0519]
[1754925797521,1.92052151,120240.0,120230.0,0.0519]
[1754925798023,1.08332151,120240.0,120230.0,0.0519]
[1754925798217,1.92032151,120240.0,120230.0,0.0519]
[1754925798425,1.08332151,120240.0,120230.0,0.0519]
[1754925798616,1.92040151,120240.0,120230.0,0.0519]
[1754925798817,1.08332151,120240.0,120230.0,0.0519]
[1754925799224,1.92052151,120240.0,120230.0,0.0519]
[1754925799420,1.08332151,120240.0,120230.0,0.0519]
[1754925799726,1.92036151,120240.0,120230.0,0.0519]
[1754925799920,0.91697751,120240.0,120230.0,0.0519]
[1754925800120,0.47130081,120240.0,120230.0,0.12172]
[1754925800422,1.75537751,120240.0,120230.0,0.14573]
[1754925800617,1.75537751,120240.0,120230.0,0.0519]
[1754925800814,1.75537751,120240.0,120230.0,0.14573]
[1754925800815,0.47130081,120240.0,120230.0,0.14573]
[1754925801014,1.30966081,120240.0,120230.0,0.23637236]
[1754925801324,0.47130081,120240.0,120230.0,0.23637236]
[1754925801526,0.02732301,120240.0,120230.0,0.68204906]
[1754925801731,0.94898051,120240.0,120230.0,0.23637236]
[1754925801919,0.02732301,120240.0,120230.0,0.23637236]
[1754925802123,0.86572301,120240.0,120230.0,0.59717236]
[1754925802323,0.02732301,120240.0,120230.0,0.59717236]
[1754925802524,0.86556301,120240.0,120230.0,0.55936236]
[1754925802724,0.86536301,120240.0,120230.0,0.55936236]
[1754925803126,0.86528301,120240.0,120230.0,0.55936236]
[1754925803526,0.84696,120240.0,120230.0,0.55936236]
[1754925803718,0.84696,120240.0,120230.0,0.60936236]
[1754925803919,0.009,120240.0,120230.0,0.60936236]
[1754925804118,0.84628,120240.0,120230.0,1.05503906]
[1754925804321,0.009,120240.0,120230.0,1.05503906]
[1754925804524,0.81124,120240.0,120230.0,1.05503906]
[1754925804728,1.21745932,120250.0,120240.0,0.0831775]
[1754925805024,2.05419932,120250.0,120240.0,0.95313216]
[1754925805325,2.05419932,120250.0,120240.0,1.05303216]
[1754925805924,0.06751932,120250.0,120240.0,1.05303216]
[1754925806128,0.83676,120250.0,120240.0,0.65735546]
[1754925806318,0.002,120250.0,120240.0,1.30719286]
[1754925806519,0.01121065,120260.0,120250.0,0.0831706]
[1754925806723,0.01111065,120260.0,120250.0,0.9834773]
[1754925807026,0.85063065,120260.0,120250.0,0.9834773]
[1754925807223,0.91575606,120260.0,120250.0,1.0833773]
[1754925807828,0.91775606,120260.0,120250.0,1.0833773]
[1754925808029,0.07823606,120260.0,120250.0,1.0833773]
[1754925808324,0.91699606,120260.0,120250.0,1.0863773]
[1754925808830,0.91651606,120260.0,120250.0,1.0863773]
[1754925810018,0.16139976,120260.0,120250.0,1.0863773]
[1754925810221,0.99899976,120260.0,120250.0,1.0863773]
[1754925810431,0.16139976,120260.0,120250.0,1.0863773]
[1754925810731,0.07823606,120260.0,120250.0,1.0863773]
[1754925810930,0.16139976,120260.0,120250.0,1.0863773]
[1754925811133,0.07823606,120260.0,120250.0,1.0863773]
[1754925811332,0.07823606,120260.0,120250.0,1.3026893]
[1754925811529,0.91475606,120260.0,120250.0,1.3026893]
[1754925811934,0.07823606,120260.0,120250.0,1.3026893]
[1754925812336,0.91431606,120260.0,120250.0,1.3026893]
[1754925812639,0.99731976,120260.0,120250.0,1.3026893]
[1754925812832,0.91415606,120260.0,120250.0,1.3026893]
[1754925813032,0.99731976,120260.0,120250.0,1.3026893]
[1754925813232,0.99711976,120260.0,120250.0,1.3026893]
[1754925813939,0.99635976,120260.0,120250.0,1.3026893]
[1754925814139,0.16139976,120260.0,120250.0,1.3026893]
[1754925814334,0.19419976,120260.0,120250.0,0.6407006]
[1754925814635,1.02907976,120260.0,120250.0,1.0863773]
[1754925814938,0.99607976,120260.0,120250.0,1.0863773]
[1754925815336,0.16139976,120260.0,120250.0,1.0863773]
[1754925815538,0.99551976,120260.0,120250.0,1.0863773]
[1754925815724,0.16139976,120260.0,120250.0,1.0863773]
[1754925815929,0.99531976,120260.0,120250.0,1.0863773]
[1754925816435,1.45073976,120260.0,120250.0,0.2799006]
[1754925816741,1.06265646,120260.0,120250.0,0.25589]
[1754925817039,0.16139976,120260.0,120250.0,0.28047]
[1754925817224,0.99463976,120260.0,120250.0,1.0869467]
[1754925817630,0.99463976,120260.0,120250.0,0.64127]
[1754925817827,1.02707976,120260.0,120250.0,0.28047]
[1754925818027,1.02707976,120260.0,120250.0,0.64127]
[1754925818339,0.07823606,120260.0,120250.0,1.0869467]
[1754925818636,0.91091606,120260.0,120250.0,1.0869467]
[1754925819639,0.99407926,120260.0,120250.0,1.0869467]
[1754925819939,0.99399926,120260.0,120250.0,1.0869467]
[1754925820326,0.16139926,120260.0,120250.0,1.0869467]
[1754925820531,0.99331926,120260.0,120250.0,1.0869467]
[1754925820834,0.99279926,120260.0,120250.0,1.0869467]
[1754925821235,0.16139926,120260.0,120250.0,1.0869467]
[1754925821435,0.99243926,120260.0,120250.0,1.0869467]
[1754925821739,0.16139926,120260.0,120250.0,1.0869467]
[1754925822643,0.99179926,120260.0,120250.0,1.0869467]
[1754925824037,0.90863606,120260.0,120250.0,1.0869467]
[1754925824439,0.99179926,120260.0,120250.0,1.0869467]
[1754925824638,0.25617926,120260.0,120250.0,0.64127]
[1754925824940,1.08541926,120260.0,120250.0,0.64127]
[1754925825533,0.25617926,120260.0,120250.0,0.4637]
[1754925825727,1.89181596,120260.0,120250.0,0.1029]
[1754925825931,1.53101596,120260.0,120250.0,0.1029]
[1754925826131,1.89181596,120260.0,120250.0,0.1029]
[1754925826633,1.06265596,120260.0,120250.0,0.1029]
[1754925827035,1.44545926,120260.0,120250.0,0.1029]
[1754925827428,0.61697926,120260.0,120250.0,0.1860701]
[1754925827640,1.89057596,120260.0,120250.0,0.1860701]
[1754925827935,1.44489926,120260.0,120250.0,0.1029]
[1754925828135,1.89085596,120260.0,120250.0,0.0679]
[1754925828334,1.67386796,120260.0,120250.0,0.04195]
[1754925828542,2.46816796,120260.0,120250.0,0.04195]
[1754925828741,2.46808796,120260.0,120250.0,0.04195]
[1754925829538,2.46788796,120260.0,120250.0,0.04195]
[1754925829843,2.46768796,120260.0,120250.0,0.04195]
[1754925830034,2.45657731,120260.0,120250.0,0.04195]
[1754925830229,1.62865731,120260.0,120250.0,0.04195]
[1754925830435,2.45657731,120260.0,120250.0,0.04195]
[1754925830934,1.73497731,120260.0,120250.0,0.04195]
[1754925831133,0.0831771,120240.0,120230.0,0.0001]
[1754925831341,1.2504538,120240.0,120230.0,0.0001]
[1754925831541,2.2445178,120240.0,120230.0,0.0001]
[1754925831743,1.4167978,120240.0,120230.0,0.0001]
[1754925831936,2.2443578,120240.0,120230.0,0.0001]
[1754925832343,1.4167978,120240.0,120230.0,0.0031]
[1754925832642,2.2439178,120240.0,120230.0,0.0031]
[1754925832845,2.2439178,120240.0,120230.0,0.0041]
[1754925833034,2.2436778,120240.0,120230.0,0.0041]
[1754925833238,2.2434778,120240.0,120230.0,0.0041]
[1754925833638,1.4167978,120240.0,120230.0,0.0041]
[1754925833839,2.2432778,120240.0,120230.0,0.0041]
[1754925834143,1.43532888,120240.0,120230.0,0.0051]
[1754925834343,2.26152888,120240.0,120230.0,0.0051]
[1754925834740,1.43532888,120240.0,120230.0,0.0051]
[1754925834945,2.26148888,120240.0,120230.0,0.0051]
[1754925835146,1.43532888,120240.0,120230.0,0.0061]
[1754925835446,2.26076888,120240.0,120230.0,0.0061]
[1754925836741,2.2422378,120240.0,120230.0,0.0061]
[1754925836950,1.4167978,120240.0,120230.0,0.0061]
[1754925837148,2.0756538,120240.0,120230.0,0.0061]
[1754925837643,0.4439771,120240.0,120230.0,0.0061]
[1754925837948,2.0746538,120240.0,120230.0,0.0315]
[1754925838139,1.7138538,120240.0,120230.0,0.0315]
[1754925839348,0.8896538,120240.0,120230.0,0.0315]
[1754925839542,0.8896538,120240.0,120230.0,0.06461]
[1754925840148,1.7126538,120240.0,120230.0,0.06461]
[1754925840344,1.7126538,120240.0,120230.0,0.0315]
[1754925840736,1.3514938,120240.0,120230.0,0.209614]
[1754925840942,0.9058171,120240.0,120230.0,0.209614]
[1754925841138,0.4439771,120240.0,120230.0,0.12643]
[1754925841544,1.7122538,120240.0,120230.0,0.06885]
[1754925841740,1.7122538,120240.0,120230.0,0.0315]
[1754925842251,1.0559978,120240.0,120230.0,0.0315]
[1754925842550,0.0832047,120200.0,120190.0,0.14086628]
[1754925842744,0.9058047,120200.0,120190.0,0.09500488]
[1754925842941,1.3514814,120200.0,120190.0,0.17821658]
[1754925843148,0.9058047,120200.0,120190.0,0.17821658]
[1754925843347,0.0832047,120200.0,120190.0,0.17821658]
[1754925843657,0.9055647,120200.0,120190.0,0.17821658]
[1754925843847,0.9055647,120200.0,120190.0,0.17921658]
[1754925844456,0.91390525,120200.0,120190.0,0.17921658]
[1754925844752,0.91378525,120200.0,120190.0,0.15474658]
[1754925845049,0.91378525,120200.0,120190.0,0.17921658]
[1754925845244,0.45234525,120200.0,120190.0,0.17921658]
[1754925845545,0.45334525,120200.0,120190.0,0.09600488]
[1754925845743,1.72102195,120200.0,120190.0,0.001]
[1754925845946,0.89902195,120200.0,120190.0,0.001]
[1754925846141,1.72094195,120200.0,120190.0,0.001]
[1754925846747,1.72074195,120200.0,120190.0,0.001]
[1754925846945,1.72074195,120200.0,120190.0,0.0842117]
[1754925847153,1.72074195,120200.0,120190.0,0.1173217]
[1754925847452,1.27506525,120200.0,120190.0,0.05858]
[1754925847652,1.27506525,120200.0,120190.0,0.1697017]
[1754925847947,0.45334525,120200.0,120190.0,0.02891]
[1754925848153,0.89902195,120200.0,120190.0,0.001]
[1754925848449,1.51109865,120200.0,120190.0,0.001]
[1754925848838,2.33229865,120200.0,120190.0,0.001]
[1754925849946,1.88662195,120200.0,120190.0,0.001]
[1754925850151,1.51109865,120200.0,120190.0,0.001]
[1754925850353,0.0832255,120170.0,120160.0,0.02791]
[1754925850550,0.8897022,120170.0,120160.0,0.02791]
[1754925850954,1.7104622,120170.0,120160.0,0.02791]
[1754925851350,2.0401822,120170.0,120160.0,0.02791]
[1754925851553,0.0832394,120150.0,120140.0,0.5016263]
[1754925851853,0.9038394,120150.0,120140.0,0.5593663]
[1754925852049,0.0832394,120150.0,120140.0,0.5872763]
[1754925852350,0.88729622,120150.0,120140.0,0.5872763]
[1754925852557,0.06701622,120150.0,120140.0,0.5872763]
[1754925852853,0.0001,120160.0,120150.0,0.0832394]
[1754925853055,1.15907741,120170.0,120160.0,0.0832324]
[1754925853254,1.9706,120170.0,120160.0,0.5872624]
[1754925854053,1.97112,120170.0,120160.0,1.0329391]
[1754925854262,1.97188,120170.0,120160.0,1.0329391]
[1754925854441,1.15048,120170.0,120160.0,1.0339391]
[1754925854646,1.00082,120170.0,120160.0,1.0339391]
[1754925854959,0.5296047,120200.0,120190.0,0.0832065]
[1754925855148,1.47284855,120200.0,120190.0,0.1409465]
[1754925855348,1.47284855,120200.0,120190.0,0.1985265]
[1754925855759,2.09308724,120200.0,120180.0,0.2741255]
[1754925855948,1.5856,120190.0,120180.0,0.3072355]
[1754925856254,2.40628,120190.0,120180.0,0.3649755]
[1754925856756,2.4062,120190.0,120180.0,0.8256755]
[1754925856954,1.5,120190.0,120180.0,1.2992622]
[1754925857155,2.32048,120190.0,120180.0,1.2992622]
[1754925857851,1.46936,120190.0,120180.0,1.5156702]
[1754925858155,0.88806385,120200.0,120190.0,0.0832117]
[1754925858356,0.91589385,120200.0,120190.0,0.9846184]
[1754925858554,0.91589385,120200.0,120190.0,1.1510184]
[1754925858947,0.91589385,120200.0,120190.0,1.2509184]
[1754925859343,0.09549385,120200.0,120190.0,1.2509184]
[1754925859551,0.82098,120200.0,120190.0,1.2509184]
[1754925860057,0.0011,120200.0,120190.0,1.2509184]
[1754925860258,0.82098,120200.0,120190.0,1.2509184]
[1754925860458,0.82086,120200.0,120190.0,1.2509184]
[1754925860655,0.82086,120200.0,120190.0,1.0845184]
[1754925860867,0.0011,120200.0,120190.0,1.2519184]
[1754925861057,0.8207,120200.0,120190.0,1.2519184]
[1754925861355,0.82038,120200.0,120190.0,1.2519184]
[1754925861562,0.81938,120200.0,120190.0,1.2519184]
[1754925861962,0.84909,120200.0,120190.0,1.2519184]
[1754925862261,0.84889,120200.0,120190.0,1.2519184]
[1754925862447,0.84829,120200.0,120190.0,1.2519184]
[1754925862648,0.91499881,120200.0,120190.0,1.2519184]
[1754925863060,0.88528881,120200.0,120190.0,1.2519184]
[1754925863267,0.09651881,120200.0,120190.0,1.2519184]
[1754925863861,0.91711881,120200.0,120190.0,1.2519184]
[1754925864161,0.09651881,120200.0,120190.0,1.2519184]
[1754925864356,0.91711881,120200.0,120190.0,1.2519184]
[1754925865261,0.09651881,120200.0,120190.0,1.2519184]
[1754925865461,0.88700881,120200.0,120190.0,1.2519184]
[1754925865656,0.0001,120200.0,120190.0,1.2519184]
[1754925865857,2.34981,120200.0,120190.0,1.2519184]
[1754925866762,1.52981,120200.0,120190.0,1.2519184]
[1754925866951,2.34981,120200.0,120190.0,1.2519184]
[1754925867556,1.56172,120200.0,120190.0,1.2519184]
[1754925867756,2.38104,120200.0,120190.0,1.2519184]
[1754925868164,2.34913,120200.0,120190.0,1.2519184]
[1754925868362,2.34913,120200.0,120190.0,1.2528684]
[1754925869277,1.52981,120200.0,120190.0,1.2528684]
[1754925869563,2.34821,120200.0,120190.0,1.2528684]
[1754925870456,1.52981,120200.0,120190.0,1.2528684]
[1754925870862,2.37923,120200.0,120190.0,1.2528684]
[1754925871063,2.37907,120200.0,120190.0,1.2528684]
[1754925872060,2.40233,120200.0,120190.0,0.6398417]
[1754925872264,2.4855348,120200.0,120190.0,0.6398417]
[1754925872471,1.6680148,120200.0,120190.0,0.6398417]
[1754925872659,2.4854148,120200.0,120190.0,0.6398417]
[1754925873367,2.4864148,120200.0,120190.0,0.6388417]
[1754925873562,2.4864148,120200.0,120190.0,0.5589317]
[1754925874570,2.4884148,120200.0,120190.0,0.5589317]
[1754925875267,2.4884148,120200.0,120190.0,0.5906417]
[1754925875771,2.40521,120200.0,120190.0,0.5906417]
[1754925876168,1.58781,120200.0,120190.0,0.6147317]
[1754925876363,2.40373,120200.0,120190.0,1.0820884]
[1754925877170,2.40373,120200.0,120190.0,0.6364117]
[1754925877361,1.58781,120200.0,120190.0,1.0836084]
[1754925877563,1.53281,120200.0,120190.0,1.0836084]
[1754925877770,1.56443,120200.0,120190.0,1.0836084]
[1754925878065,2.34861,120200.0,120190.0,1.0845584]
[1754925878275,1.58681,120200.0,120190.0,1.0836084]
[1754925878473,2.1146914,120200.0,120190.0,0.5439117]
[1754925878770,2.4844947,120200.0,120190.0,0.5439117]
[1754925879160,1.6690147,120200.0,120190.0,0.1831117]
[1754925879365,2.8456947,120200.0,120190.0,0.0999]
[1754925879864,2.8456947,120200.0,120190.0,0.1831117]
[1754925880371,2.8456947,120200.0,120190.0,0.0999]
[1754925880568,0.0832117,120190.0,120180.0,0.5272313]
[1754925880761,0.0832186,120180.0,120170.0,0.84292165]
[1754925880961,0.2269186,120180.0,120170.0,0.84292165]
[1754925881166,1.0421586,120180.0,120170.0,0.87248165]
[1754925881367,0.95894,120180.0,120170.0,0.7232551]
[1754925881563,0.1437,120180.0,120170.0,0.8359251]
[1754925881866,0.95862,120180.0,120170.0,1.2816018]
[1754925882475,0.2269186,120180.0,120170.0,0.8359251]
[1754925882674,0.2269186,120180.0,120170.0,0.7419551]
[1754925882873,0.6725953,120180.0,120170.0,0.2496706]
[1754925883172,1.4897553,120180.0,120170.0,0.2496706]
[1754925883375,0.2269186,120180.0,120170.0,0.2496706]
[1754925883574,1.0441186,120180.0,120170.0,0.3296406]
[1754925883771,0.9609,120180.0,120170.0,0.3547306]
[1754925883972,1.0441186,120180.0,120170.0,0.7155306]
[1754925884365,0.9609,120180.0,120170.0,0.7155306]
[1754925884569,0.93075,120180.0,120170.0,1.1993773]
[1754925884765,0.9605,120180.0,120170.0,0.7537006]
[1754925885075,1.0437186,120180.0,120170.0,0.7537006]
[1754925885779,1.05194132,120180.0,120170.0,0.6979006]
[1754925885975,1.05194132,120180.0,120170.0,0.6762206]
[1754925886378,1.05190132,120180.0,120170.0,0.001]
[1754925886578,0.0832255,120170.0,120160.0,0.4735925]
[1754925886774,1.0427655,120170.0,120160.0,0.4735925]
[1754925886969,1.0427655,120170.0,120160.0,0.39036]
[1754925887372,0.2269255,120170.0,120160.0,0.4735925]
[1754925887576,1.0425255,120170.0,120160.0,0.39036]
[1754925888477,0.6726022,120170.0,120160.0,0.3608]
[1754925888669,1.4877222,120170.0,120160.0,0.4440325]
[1754925888876,1.4887222,120170.0,120160.0,0.4607]
[1754925889183,1.4887222,120170.0,120160.0,0.5439325]
[1754925889372,1.8515222,120170.0,120160.0,0.1831325]
[1754925889572,1.8515222,120170.0,120160.0,0.0999]
[1754925890079,1.8515222,120170.0,120160.0,0.1831324]
[1754925890272,1.8515222,120170.0,120160.0,0.0999]
[1754925890780,1.8515222,120170.0,120160.0,0.1831324]
[1754925891079,1.4058455,120170.0,120160.0,0.1831324]
[1754925891279,0.5907255,120170.0,120160.0,0.1831324]
[1754925891480,1.4048055,120170.0,120160.0,0.1831324]
[1754925892480,1.4048055,120170.0,120160.0,0.2126924]
[1754925892783,1.4048055,120170.0,120160.0,0.12946]
[1754925893182,1.4048055,120170.0,120160.0,0.2126925]
[1754925893482,1.4046455,120170.0,120160.0,0.2126925]
[1754925894473,1.0438455,120170.0,120160.0,0.2126925]
[1754925894776,1.0438455,120170.0,120160.0,0.2444025]
[1754925895582,1.0438455,120170.0,120160.0,0.2126925]
[1754925897672,1.4046455,120170.0,120160.0,0.2126925]
[1754925897879,0.0832395,120150.0,120140.0,0.02956]
[1754925898084,0.5684362,120150.0,120140.0,0.1128065]
[1754925898389,0.9349895,120150.0,120140.0,0.1128065]
[1754925898585,0.9361095,120150.0,120140.0,0.1457165]
[1754925899492,0.9357895,120150.0,120140.0,0.1467165]
[1754925900087,0.1233895,120150.0,120140.0,0.1467165]
[1754925900583,0.9298662,120150.0,120140.0,0.001]
[1754925900786,1.7419062,120150.0,120140.0,0.001]